fUSD/lending_fUSD_20240623
["ID","MTS","AMOUNT","RATE_DAILY","PERIOD"]
[330201992,1719138644550,-403.02186168,0.00015585,2]
[330201993,1719138644560,-629.15,0.00015585,2]
[330201994,1719138644568,-3420.0,0.000156,5]
[330201995,1719138644578,-1000.0,0.000156,2]
[330201996,1719138644587,-225.0,0.000156,2]
[330201997,1719138644596,-150.0,0.00015654,2]
[330201998,1719138644606,-150.0,0.00015685,2]
[330201999,1719138644615,-150.0,0.00015691,2]
[330202000,1719138644625,-150.0,0.00015694,2]
[330202001,1719138644634,-150.0,0.00015695,2]
[330202002,1719138644643,-150.0,0.00015697,2]
[330202003,1719138644653,-150.0,0.00015703,2]
[330202004,1719138644662,-150.0,0.00015704,2]
[330202005,1719138644671,-150.0,0.00015706,2]
[330202006,1719138644680,-150.0,0.00015706,2]
[330202007,1719138644690,-150.0,0.00015715,2]
[330202008,1719138644699,-150.0,0.00015717,2]
[330202009,1719138644708,-150.0,0.00015718,2]
[330202010,1719138644718,-150.0,0.00015719,2]
[330202011,1719138644727,-1500.0,0.0001572,2]
[330202012,1719138644736,-981.17,0.0001572,2]
[330202013,1719138644745,-150.0,0.00015722,2]
[330202014,1719138644754,-150.0,0.00015725,2]
[330202015,1719138644763,-150.0,0.00015728,2]
[330202016,1719138644774,-150.0,0.00015729,2]
[330202017,1719138644784,-150.0,0.00015731,2]
[330202018,1719138644794,-150.0,0.00015731,2]
[330202019,1719138644803,-150.0,0.00015731,2]
[330202020,1719138644812,-300.0,0.00015732,2]
[330202021,1719138644822,-150.0,0.00015733,2]
[330202022,1719138644831,-1500.0,0.00015734,2]
[330202023,1719138644841,-150.0,0.00015735,2]
[330202024,1719138644851,-1110.64875862,0.00015737,2]
[330202025,1719138644861,-150.0,0.0001574,2]
[330202026,1719138644870,-150.0,0.00015741,2]
[330202027,1719138644881,-150.0,0.00015741,2]
[330202028,1719138644891,-150.0,0.00015741,2]
[330202029,1719138644902,-150.0,0.00015742,2]
[330202030,1719138644914,-1500.0,0.00015746,2]
[330202031,1719138644924,-150.0,0.0001575,2]
[330202032,1719138644934,-150.0,0.0001575,2]
[330202033,1719138644944,-150.0,0.00015751,2]
[330202034,1719138644953,-300.0,0.00015753,2]
[330202035,1719138644963,-150.0,0.00015753,2]
[330202036,1719138644974,-292.58,0.00015753,2]
[330202037,1719138644985,-150.0,0.00015754,2]
[330202038,1719138644996,-150.0,0.00015755,2]
[330202039,1719138645006,-150.0,0.00015755,2]
[330202040,1719138645015,-150.0,0.00015757,2]
[330202041,1719138645027,-394.64492143,0.00015757,2]
[330202042,1719138645037,-150.0,0.00015758,2]
[330202043,1719138645047,-150.0,0.00015764,2]
[330202044,1719138645056,-1500.0,0.00015772,2]
[330202045,1719138645065,-150.0,0.00015773,2]
[330202046,1719138645074,-150.0,0.00015774,2]
[330202047,1719138645084,-150.0,0.00015779,2]
[330202048,1719138645094,-150.0,0.00015779,2]
[330202049,1719138645104,-150.0,0.00015781,2]
[330202050,1719138645114,-3022.81708204,0.00015781,2]
[330202051,1719138645124,-1500.0,0.00015782,2]
[330202052,1719138645134,-1500.0,0.00015784,2]
[330202053,1719138645144,-150.0,0.00015785,2]
[330202054,1719138645155,-150.0,0.00015792,2]
[330202055,1719138645167,-150.0,0.00015793,2]
[330202056,1719138645178,-150.0,0.00015794,2]
[330202057,1719138645190,-150.0,0.00015798,2]
[330202058,1719138645200,-150.0,0.00015802,2]
[330202059,1719138645209,-150.0,0.00015802,2]
[330202060,1719138645219,-150.0,0.00015803,2]
[330202061,1719138645231,-1500.0,0.00015807,2]
[330202062,1719138645244,-150.0,0.00015809,2]
[330202063,1719138645256,-6346.32654305,0.00015809,2]
[330202064,1719138645267,-151.00673636,0.00015813,2]
[330202065,1719138645277,-301.65896824,0.00015813,2]
[330202066,1719138645288,-150.0,0.00015813,2]
[330202067,1719138645299,-150.0,0.00015817,2]
[330202068,1719138645309,-1500.0,0.00015817,2]
[330202069,1719138645319,-150.0,0.00015818,2]
[330202070,1719138645329,-155.26019915,0.0001582,2]
[330202071,1719138645340,-1500.0,0.00015821,2]
[330202072,1719138645351,-1500.0,0.00015829,2]
[330202073,1719138645361,-167.0,0.00015831,2]
[330202074,1719138645371,-167.0,0.00015831,2]
[330202075,1719138645381,-167.0,0.00015831,2]
[330202076,1719138645391,-167.0,0.00015831,2]
[330202077,1719138645402,-164.66,0.00015831,2]
[330202078,1719138645412,-150.0,0.00015832,2]
[330202079,1719138645421,-1688.91988299,0.00015832,2]
[330202080,1719138645431,-1500.0,0.00015833,2]
[330202081,1719138645440,-1500.0,0.00015835,2]
[330202082,1719138645449,-1500.0,0.00015835,2]
[330202083,1719138645459,-150.0,0.00015836,2]
[330202084,1719138645469,-150.0,0.00015836,2]
[330202085,1719138645480,-150.0,0.00015836,2]
[330202086,1719138645490,-150.0,0.00015836,2]
[330202087,1719138645500,-150.0,0.00015838,2]
[330202088,1719138645510,-1075.38446882,0.00015841,2]
[330202089,1719138645520,-150.0,0.00015841,2]
[330202090,1719138645532,-150.0,0.00015841,2]
[330202091,1719138645543,-150.0,0.00015841,2]
[330202092,1719138645554,-150.0,0.00015843,2]
[330202093,1719138645563,-150.0,0.00015846,2]
[330202094,1719138645573,-150.0,0.00015846,2]
[330202095,1719138645584,-600.0,0.00015849,2]
[330202096,1719138645594,-150.0,0.00015849,2]
[330202097,1719138645603,-1340.07749841,0.00015851,2]
[330202098,1719138645612,-1340.07749841,0.00015851,2]
[330202099,1719138645622,-311.69949124,0.00015852,2]
[330202100,1719138645631,-150.0,0.00015859,2]
[330202101,1719138645641,-150.0,0.00015859,2]
[330202102,1719138645650,-150.0,0.00015862,2]
[330202103,1719138645661,-150.0,0.00015862,2]
[330202104,1719138645670,-1500.0,0.00015864,2]
[330202105,1719138645679,-150.0,0.00015865,2]
[330202106,1719138645689,-150.0,0.00015866,2]
[330202107,1719138645698,-150.0,0.00015867,2]
[330202108,1719138645708,-150.0,0.00015873,2]
[330202109,1719138645717,-150.0,0.00015873,2]
[330202110,1719138645726,-150.0,0.00015875,2]
[330202111,1719138645736,-150.0,0.00015879,2]
[330202112,1719138645745,-150.0,0.00015882,2]
[330202113,1719138645754,-328.40415863,0.00015882,2]
[330202114,1719138645764,-387.75059653,0.00015882,2]
[330202115,1719138645778,-150.0,0.00015883,2]
[330202116,1719138645788,-528.01671537,0.00015884,2]
[330202117,1719138645798,-206.99387112,0.00015885,2]
[330202118,1719138645807,-529.72889138,0.00015887,2]
[330202119,1719138645818,-297.32648978,0.00015888,2]
[330202120,1719138645827,-531.94373272,0.00015888,2]
[330202121,1719138645837,-150.0,0.0001589,2]
[330202122,1719138645846,-150.0,0.00015891,2]
[330202123,1719138645857,-150.0,0.00015892,2]
[330202124,1719138645867,-150.0,0.00015894,2]
[330202125,1719138645876,-151.96941957,0.00015896,2]
[330202126,1719138645886,-150.0,0.00015896,2]
[330202127,1719138645895,-150.0,0.00015897,2]
[330202128,1719138645904,-150.0,0.00015898,2]
[330202129,1719138645914,-150.0,0.00015899,2]
[330202130,1719138645923,-150.0,0.00015903,2]
[330202131,1719138645933,-150.0,0.00015905,2]
[330202132,1719138645943,-150.0,0.00015908,2]
[330202133,1719138645952,-300.0,0.00015909,2]
[330202134,1719138645962,-150.0,0.00015913,2]
[330202135,1719138645971,-300.0,0.00015916,2]
[330202136,1719138645980,-1500.0,0.0001592,2]
[330202137,1719138645989,-150.0,0.00015925,2]
[330202138,1719138645999,-150.0,0.00015927,2]
[330202139,1719138646008,-150.0,0.00015929,2]
[330202140,1719138646017,-150.0,0.00015933,2]
[330202141,1719138646027,-150.0,0.00015933,2]
[330202142,1719138646038,-150.0,0.00015934,2]
[330202143,1719138646048,-150.0,0.00015936,2]
[330202144,1719138646059,-1500.0,0.00015937,2]
[330202145,1719138646070,-1500.0,0.00015938,2]
[330202147,1719138646082,-150.0,0.00015941,2]
[330202148,1719138646092,-150.0,0.00015943,2]
[330202149,1719138646102,-300.93247203,0.00015947,2]
[330202150,1719138646111,-150.0,0.00015947,2]
[330202151,1719138646121,-1500.0,0.00015955,2]
[330202152,1719138646131,-150.0,0.00015955,2]
[330202153,1719138646141,-150.0,0.00015956,2]
[330202154,1719138646153,-1900.0,0.00015958,2]
[330202155,1719138646167,-500.0,0.00015958,2]
[330202156,1719138646181,-1700.0,0.00015958,2]
[330202157,1719138646196,-500.0,0.00016,2]
[330202158,1719138646208,-500.0,0.00016,2]
[330202159,1719138646222,-500.0,0.00016,2]
[330202160,1719138646235,-500.0,0.00016,2]
[330202161,1719138646248,-500.0,0.00016,2]
[330202162,1719138646261,-500.0,0.00016,2]
[330202163,1719138646273,-500.0,0.00016,2]
[330202164,1719138646285,-500.0,0.00016,2]
[330202165,1719138646300,-500.0,0.00016,2]
[330202166,1719138646313,-500.0,0.00016,2]
[330202167,1719138646326,-500.0,0.00016,2]
[330202168,1719138646338,-500.0,0.00016,2]
[330202169,1719138646350,-500.0,0.00016,2]
[330202170,1719138646363,-500.0,0.00016,2]
[330202171,1719138646375,-500.0,0.00016,2]
[330202172,1719138646388,-500.0,0.00016,2]
[330202174,1719138646400,-500.0,0.00016,2]
[330202175,1719138646411,-500.0,0.00016,2]
[330202176,1719138646423,-500.0,0.00016,2]
[330202177,1719138646435,-500.0,0.00016,2]
[330202178,1719138646452,-500.0,0.00016,2]
[330202179,1719138646464,-458.65,0.00016,2]
[330202180,1719138646477,-500.0,0.00016,2]
[330202181,1719138646489,-500.0,0.00016,2]
[330202182,1719138646502,-500.0,0.00016,2]
[330202183,1719138646516,-282.32,0.00016,2]
[330202184,1719138646529,-500.0,0.00016,2]
[330202185,1719138646540,-500.0,0.00016,2]
[330202186,1719138646550,-500.0,0.00016,2]
[330202187,1719138646561,-12747.94565031,0.00016,2]
[330202188,1719138646574,-500.0,0.00016,2]
[330202189,1719138646587,-500.0,0.00016,2]
[330202190,1719138646600,-500.0,0.00016,2]
[330202191,1719138646610,-500.0,0.00016,2]
[330202192,1719138646621,-500.0,0.00016,2]
[330202193,1719138646632,-230.39,0.00016,2]
[330202194,1719138646646,-500.0,0.00016,2]
[330202195,1719138646658,-500.0,0.00016,2]
[330202196,1719138646670,-500.0,0.00016,2]
[330202197,1719138646680,-500.0,0.00016,2]
[330202198,1719138646694,-500.0,0.00016,2]
[330202199,1719138646706,-500.0,0.00016,2]
[330202200,1719138646718,-500.0,0.00016,2]
[330202201,1719138646730,-500.0,0.00016,2]
[330202202,1719138646741,-507.14,0.00016,2]
[330202203,1719138646752,-2000.0,0.00016,2]
[330202204,1719138646763,-202.517411,0.00016,2]
[330202205,1719138646779,-202.517411,0.00016,2]
[330202206,1719138646793,-2000.0,0.0001601,2]
[330202207,1719138646804,-2000.0,0.0001602,2]
[330202208,1719138646816,-2000.0,0.0001603,2]
[330202209,1719138646827,-2189.883854,0.0001604,2]
[330202210,1719138646838,-552.0,0.0001609,2]
[330202211,1719138646851,-179.25825052,0.00016093,2]
[330202212,1719138646863,-711.0,0.000163,2]
[330202213,1719138646874,-167.0,0.00016354,2]
[330202214,1719138646886,-175.48545791,0.00016429,2]
[330202215,1719138646897,-175.48545791,0.00016429,2]
[330202216,1719138646907,-292.58,0.00016438,2]
[330202217,1719138646919,-6346.32654305,0.00016445,2]
[330202218,1719138646931,-167.0,0.00016484,2]
[330202219,1719138646947,-600.0,0.00016509,2]
[330202220,1719138646958,-403.02186168,0.00016528,2]
[330202221,1719138646968,-944.02914426,0.00016546,2]
[330202222,1719138646979,-5240.0,0.000167,2]
[330202223,1719138646992,-151.0,0.000167,2]
[330202224,1719138647004,-197.365122,0.000167,2]
[330202225,1719138647016,-151.0,0.000167,2]
[330202226,1719138647027,-627.575765,0.000167,2]
[330202227,1719138647039,-476.780135,0.000167,2]
[330202228,1719138647050,-627.575765,0.000167,2]
[330202229,1719138647062,-476.780135,0.000167,2]
[330202230,1719138647074,-209.306323,0.000167,2]
[330202231,1719138647086,-151.0,0.000167,2]
[330202232,1719138647097,-2410.0,0.000167,2]
[330202233,1719138647108,-1293.0,0.000167,2]
[330202234,1719138647119,-152.747,0.000167,2]
[330202235,1719138647131,-1982.0,0.000167,2]
[330202236,1719138647143,-547.0,0.000167,2]
[330202237,1719138647154,-3198.0,0.000167,2]
[330202238,1719138647166,-1068.0,0.000167,2]
[330202239,1719138647177,-5799.0,0.000167,2]
[330202240,1719138647190,-1830.0,0.000167,2]
[330202241,1719138647202,-359.0,0.000167,2]
[330202242,1719138647213,-1272.0,0.000167,2]
[330202243,1719138647225,-291.0,0.000167,2]
[330202244,1719138647236,-5167.0,0.000167,2]
[330202245,1719138647247,-1655.0,0.000167,2]
[330202246,1719138647259,-1233.28,0.000167,2]
[330202247,1719138647271,-1661.0,0.000167,2]
[330202248,1719138647282,-38159.0,0.000167,2]
[330202249,1719138647293,-164.66,0.00016702,2]
[330202250,1719138647304,-1900.0,0.0001678,2]
[330202251,1719138647316,-500.0,0.0001678,2]
[330202252,1719138647327,-500.0,0.0001678,2]
[330202253,1719138647338,-1700.0,0.0001678,2]
[330202254,1719138647350,-4800.0,0.000168,6]
[330202255,1719138647361,-448.0,0.00016826,2]
[330202256,1719138647372,-2694.83588318,0.00016869,2]
[330202257,1719138647383,-189.6815861,0.00016869,2]
[330202258,1719138647394,-390.51171304,0.00016869,2]
[330202259,1719138647405,-167.0,0.00016876,2]
[330202260,1719138647417,-179.25825052,0.00016894,2]
[330202261,1719138647427,-6400.0,0.000169,6]
[330202262,1719138647439,-155.0,0.00016933,30]
[330202263,1719138647450,-151.0,0.00016969,2]
[330202264,1719138647462,-151.0,0.00016969,2]
[330202265,1719138647473,-627.575765,0.00016969,2]
[330202266,1719138647485,-476.780135,0.00016969,2]
[330202267,1719138647496,-627.575765,0.00016969,2]
[330202268,1719138647507,-476.780135,0.00016969,2]
[330202269,1719138647519,-151.0,0.00016969,2]
[330202270,1719138647531,-376175.52596415,0.00016969,2]
[330202271,1719138648827,-690.0,0.00014536,2]
[330202272,1719138648837,-180.76249,0.00015,2]
[330202273,1719138648846,-1897.42948507,0.000155,2]
[330202274,1719138648858,-522.44662479,0.000155,2]
[330202275,1719138648869,-3210.35,0.000155,2]
[330202276,1719138648880,-346.54933904,0.000155,2]
[330202277,1719138648889,-150.0,0.00015698,2]
[330202278,1719138648898,-150.0,0.00015698,2]
[330202279,1719138648911,-150.0,0.00015701,2]
[330202280,1719138648920,-150.0,0.00015701,2]
[330202281,1719138648929,-150.0,0.00015704,2]
[330202282,1719138648940,-150.0,0.00015704,2]
[330202283,1719138648950,-150.0,0.00015711,2]
[330202284,1719138648959,-150.0,0.00015716,2]
[330202285,1719138648968,-150.0,0.00015728,2]
[330202286,1719138648977,-150.0,0.00015728,2]
[330202287,1719138648987,-150.0,0.00015731,2]
[330202288,1719138648998,-150.0,0.00015731,2]
[330202289,1719138649008,-150.0,0.00015736,2]
[330202290,1719138649017,-150.0,0.00015737,2]
[330202291,1719138649026,-150.0,0.00015743,2]
[330202292,1719138649036,-150.0,0.00015744,2]
[330202293,1719138649046,-150.0,0.00015745,2]
[330202294,1719138649055,-150.0,0.00015747,2]
[330202295,1719138649064,-150.0,0.00015762,2]
[330202296,1719138649073,-15.5827782,0.00015767,2]
[330202301,1719139581034,-660.23,0.00011693,2]
[330202302,1719139581059,-300.0,0.00012979,2]
[330202303,1719139581085,-8167.7918,0.0001298,2]
[330202304,1719139584494,-10000.0,0.0001298,2]
[330202305,1719139584982,-10000.0,0.0001298,2]
[330202306,1719139585388,-10000.0,0.0001298,2]
[330202307,1719139585901,-10000.0,0.0001298,2]
[330202308,1719139586431,-6954.87585501,0.0001298,2]
[330202309,1719139586455,-1691.24578734,0.00013,2]
[330202310,1719139586479,-220.8,0.00013326,2]
[330202311,1719139586504,-1133.07835765,0.00013424,2]
[330202312,1719139586983,-10000.0,0.00013424,2]
[330202313,1719139589715,-10000.0,0.00013424,2]
[330202314,1719139604028,-163.21435822,0.00010959,2]
[330202315,1719139604704,-150.0,0.00010959,2]
[330202316,1719139605463,-150.0,0.00010959,2]
[330202317,1719139641112,-343.47564178,0.00010959,2]
[330202318,1719139641135,-4345.89405822,0.00013356,2]
[330202319,1719139645870,-3467.12598778,0.00013356,2]
[330202320,1719139645893,-2756.92164235,0.00013424,2]
[330202321,1719139645918,-250.0,0.00013484,2]
[330202322,1719139645942,-2400.0,0.000135,4]
[330202323,1719139645966,-150.0,0.00013562,2]
[330202324,1719139645988,-975.95236987,0.00013587,3]
[330202325,1719139646725,-1024.04763013,0.00013587,3]
[330202326,1719139646750,-2500.0,0.0001359,2]
[330202327,1719139646779,-4900.0,0.000136,4]
[330202328,1719139646802,-1019.98,0.00013602,2]
[330202329,1719139646824,-500.0,0.00013651,2]
[330202330,1719139646846,-55.97236987,0.00013651,2]
[330202331,1719139647662,-444.02763013,0.00013651,2]
[330202332,1719139647684,-500.0,0.00013651,2]
[330202333,1719139647705,-500.0,0.00013651,2]
[330202334,1719139647726,-500.0,0.00013651,2]
[330202335,1719139647747,-500.0,0.00013651,2]
[330202336,1719139647772,-500.0,0.00013651,2]
[330202337,1719139647795,-500.0,0.00013651,2]
[330202338,1719139647817,-500.0,0.00013651,2]
[330202339,1719139647841,-500.0,0.00013651,2]
[330202340,1719139647863,-500.0,0.00013651,2]
[330202341,1719139647886,-500.0,0.00013651,2]
[330202342,1719139647907,-500.0,0.00013651,2]
[330202343,1719139647932,-976.0,0.00013651,2]
[330202344,1719139647954,-500.0,0.0001369,2]
[330202345,1719139647976,-2579.97236987,0.0001369,2]
[330202346,1719139648686,-10000.0,0.0001369,2]
[330202383,1719139832506,-158.9647594,0.00010859,2]
[330202384,1719139832516,-169.9202406,0.00011339,2]
[330202385,1719139832527,-457.2897594,0.00011339,2]
[330202386,1719139832536,-192.6753,0.0001288,2]
[330202387,1719139832545,-1133.76952232,0.00013277,2]
[330202388,1719139832554,-219.24077177,0.00013277,2]
[330202389,1719139832563,-510.82637641,0.00013277,2]
[330202390,1719139832572,-163.61123882,0.00013277,2]
[330202391,1719139832582,-720.35067502,0.00013277,2]
[330202392,1719139832591,-226.97769319,0.00013277,2]
[330202393,1719139832600,-1627.92964949,0.00013278,2]
[330202394,1719139832610,-300.0,0.00013278,2]
[330202395,1719139832619,-165.2402831,0.00013278,2]
[330202396,1719139832628,-323.82544687,0.00013279,2]
[330202397,1719139832637,-273.63686693,0.00013279,2]
[330202398,1719139832647,-158.01350582,0.00013279,2]
[330202399,1719139832656,-150.0,0.00013282,2]
[330202400,1719139832666,-300.0,0.00013282,2]
[330202401,1719139832676,-2876.0,0.00013589,2]
[330202402,1719139832686,-500.0,0.0001359,2]
[330202404,1719139832695,-2299.0646,0.0001359,2]
[330202405,1719139832705,-627.21,0.00013603,2]
[330202406,1719139832715,-155.0,0.0001369,2]
[330202407,1719139832724,-300.0,0.0001369,2]
[330202408,1719139832734,-204.3583909,0.0001369,2]
[330202409,1719139832744,-85880.71768312,0.0001369,2]
[330202410,1719139833144,-0.00011838,0.0001369,2]
[330202411,1719139833160,-3545.23594935,0.0001369,2]
[330202412,1719139833195,-2155.68206657,0.0001369,2]
[330202413,1719139833207,-383.91756538,0.0001369,2]
[330202414,1719139838312,-264.24,0.00013276,2]
[330202417,1719139838666,-1363.68964949,0.00013276,2]
[330202418,1719139838675,-179.64396124,0.00013277,2]
[330202419,1719139838685,-451.54295331,0.0001369,2]
[330202420,1719139838740,-27284.94492335,0.0001369,2]
[330202423,1719139840872,-2072.54122086,0.0001369,2]
[330202424,1719139840884,-512.78472787,0.0001369,2]
[330202425,1719139840895,-727.02036215,0.0001369,2]
[330202426,1719139840908,-38345.4209184,0.0001369,2]
[330202432,1719139843523,-71060.21914139,0.0001369,2]
[330202433,1719139843532,-6950.4756,0.0001369,2]
[330202434,1719139843543,-1000.0,0.0001369,2]
[330202435,1719139843552,-3019.88,0.0001369,2]
[330202436,1719139843563,-150.99,0.0001369,2]
[330202437,1719139843573,-194.58,0.00013699,2]
[330202438,1719139843582,-7400.0,0.000137,5]
[330202439,1719139843592,-327.59,0.000137,2]
[330202440,1719139843601,-159.3406672,0.0001379,2]
[330202441,1719139843610,-6484.74492338,0.00013799,2]
[330202442,1719139843619,-9900.0,0.000138,5]
[330202443,1719139843629,-7500.0,0.000139,2]
[330202444,1719139843640,-12400.0,0.000139,5]
[330202445,1719139843649,-151.78727399,0.000139,2]
[330202446,1719139843660,-327.14049148,0.000139,2]
[330202447,1719139843670,-190.85369923,0.000139,2]
[330202448,1719139843679,-208.14980787,0.000139,2]
[330202449,1719139843688,-195.76537333,0.0001399,2]
[330202450,1719139843697,-195.76537333,0.0001399,2]
[330202451,1719139843708,-499.99,0.0001399,2]
[330202452,1719139843717,-693.0,0.00014,2]
[330202453,1719139843726,-301687.55376238,0.00014,2]
[330202454,1719139843884,-527092.36285783,0.00014,2]
[330202462,1719139846533,-2525.25727382,0.0001359,2]
[330202463,1719139846546,-523.98031464,0.0001359,2]
[330202464,1719139846746,-2869.07369635,0.0001359,2]
[330202476,1719141032595,-581.06799919,0.0001069,2]
[330202477,1719141032607,-82.65200081,0.0001069,2]
[330202478,1719141032616,-2977.93589618,0.00011417,2]
[330202479,1719141032628,-236.97872452,0.00011517,2]
[330202481,1719141032809,-203.805746,0.00011517,2]
[330202482,1719141032819,-331.56828805,0.00011617,2]
[330202483,1719141032829,-250.0,0.00012513,2]
[330202484,1719141032839,-150.0,0.00012636,2]
[330202485,1719141032848,-150.0,0.00012636,2]
[330202486,1719141032858,-300.0,0.00012636,2]
[330202487,1719141032867,-23900.0,0.00012637,2]
[330202488,1719141032877,-1461.54,0.00012654,2]
[330202489,1719141032886,-169.87,0.00012728,2]
[330202490,1719141032895,-176.64,0.00012749,2]
[330202491,1719141032904,-1336.01,0.00012764,2]
[330202492,1719141032915,-2000.0,0.00012798,3]
[330202493,1719141032925,-250.0,0.00012823,2]
[330202494,1719141032934,-161.26,0.00012954,2]
[330202495,1719141032944,-150.99,0.00012954,2]
[330202496,1719141032954,-499.99,0.00012954,2]
[330202497,1719141032964,-663.72,0.00012954,2]
[330202498,1719141032975,-37449.61099904,0.0001349,2]
[330202499,1719141032990,-522.3297664,0.0001349,2]
[330202500,1719141033002,-62028.05923456,0.0001349,2]
[330202501,1719141033011,-1300.0,0.000135,4]
[330202502,1719141033020,-17351.72761448,0.0001358,2]
[330202503,1719141033030,-155.0,0.0001359,2]
[330202505,1719141033040,-1258.785,0.0001359,2]
[330202507,1719141033049,-245000.0,0.0001359,2]
[330202508,1719141033058,-3858.17,0.000136,2]
[330202509,1719141033067,-2700.0,0.000136,4]
[330202510,1719141033077,-823.36,0.00013617,2]
[330202511,1719141033086,-159.94,0.00013699,2]
[330202512,1719141033096,-1500.0,0.00013699,5]
[330202513,1719141033106,-4000.0,0.000137,5]
[330202514,1719141033115,-159.34066713,0.0001379,2]
[330202515,1719141033124,-384.32645906,0.00013796,2]
[330202516,1719141033133,-5836.27043106,0.00013799,2]
[330202517,1719141033143,-5400.0,0.000138,5]
[330202518,1719141033152,-415.07899166,0.00013821,2]
[330202519,1719141033164,-420.0,0.00013862,2]
[330202520,1719141033173,-210.0,0.00013899,2]
[330202521,1719141033186,-6700.0,0.000139,5]
[330202522,1719141033195,-151.78727399,0.000139,2]
[330202523,1719141033204,-1796.55725544,0.000139,2]
[330202524,1719141033215,-259.60763823,0.0001391,2]
[330202525,1719141033224,-5684.55175263,0.0001391,2]
[330202526,1719141033234,-189.42894478,0.0001399,2]
[330202527,1719141033244,-622.0,0.00014,2]
[330202528,1719141033254,-144204.13941856,0.00014,2]
[330202529,1719141033540,-1606038.51693941,0.00014,2]
[330202530,1719141033572,-34237.70285173,0.00014,2]
[330202531,1719141033587,-458.64450781,0.00014,2]
[330202542,1719141043892,-527092.36285783,0.00014,2]
[330202568,1719141046985,-19324.2,0.00014,2]
[330202570,1719141046997,-1065.55614246,0.00014,2]
[330202572,1719141047009,-2811.4116,0.00014,2]
[330202579,1719141047214,-737.44275326,0.00014,2]
[330202583,1719141792673,161.0,0.00014,30]
[330202584,1719141793076,161.0,0.00015,30]
[330202585,1719141793488,161.0,0.00016,30]
[330202590,1719142231964,-661.32,0.00010892,2]
[330202591,1719142231980,-450.0,0.00012488,2]
[330202592,1719142231990,-352.13546276,0.00012551,2]
[330202593,1719142232003,-2812.39453724,0.00012551,2]
[330202594,1719142232014,-2000.0,0.00012708,3]
[330202595,1719142232024,-1210.46,0.00012715,2]
[330202596,1719142232035,-200.0,0.00012743,2]
[330202597,1719142232045,-967.02,0.00012744,2]
[330202598,1719142232058,-250.0,0.0001279,2]
[330202599,1719142232069,-250.0,0.00012833,2]
[330202600,1719142232079,-150.0,0.00013155,2]
[330202601,1719142232089,-661.32,0.00013156,2]
[330202602,1719142232099,-499.99,0.00013156,2]
[330202603,1719142232109,-473.0272,0.00013264,2]
[330202604,1719142232119,-166.49,0.00013328,2]
[330202605,1719142232128,-418.39,0.00013342,2]
[330202606,1719142232138,-852.82,0.00013342,2]
[330202607,1719142232150,-852.82,0.00013342,2]
[330202608,1719142232159,-418.39,0.00013342,2]
[330202609,1719142232169,-428.01902276,0.00013342,2]
[330202610,1719142232182,-424.80097724,0.00013342,2]
[330202611,1719142232193,-418.39,0.00013342,2]
[330202612,1719142232204,-418.39,0.00013342,2]
[330202613,1719142232214,-1000.0,0.00013348,2]
[330202614,1719142232224,-2265.89098984,0.0001339,2]